[Event "*** Titled Tuesday Blitz"]
[Site "Chess.com"]
[Date "2019.01.01"]
[Round "1"]
[White "Quiet_Desperation"]
[Black "DryCounty"]
[Result "0-1"]
[WhiteElo "2363"]
[BlackElo "2710"]
[TimeControl "180+2"]
[EndTime "13:05:41 PST"]
[Termination "DryCounty won by resignation"]

1. e4 {[%clk 0:03:01.6]} 1... c5 {[%clk 0:02:59.4]} 2. d4 {[%clk 0:03:02.5]}
2... cxd4 {[%clk 0:02:59.7]} 3. c3 {[%clk 0:03:04.4]} 3... dxc3 {[%clk
0:03:00.5]} 4. Nxc3 {[%clk 0:03:05.3]} 4... Nc6 {[%clk 0:03:01.7]} 5. Nf3 {[%clk
0:03:06.9]} 5... e6 {[%clk 0:03:02.3]} 6. Bc4 {[%clk 0:03:08.5]} 6... Bb4 {[%clk
0:03:02.7]} 7. O-O {[%clk 0:03:09.1]} 7... Nge7 {[%clk 0:03:03.3]} 8. Bg5 {[%clk
0:03:09.8]} 8... O-O {[%clk 0:03:02.2]} 9. Bd3 {[%clk 0:03:05.6]} 9... f6 {[%clk
0:02:59]} 10. Bh4 {[%clk 0:03:06.4]} 10... Ng6 {[%clk 0:02:59.4]} 11. Bg3 {[%clk
0:03:07.4]} 11... Nge5 {[%clk 0:02:56.2]} 12. Nxe5 {[%clk 0:03:08.4]} 12... Nxe5
{[%clk 0:02:56.4]} 13. Bc2 {[%clk 0:03:10.1]} 13... a6 {[%clk 0:02:51.4]} 14. f4
{[%clk 0:03:11.3]} 14... Nf7 {[%clk 0:02:45.1]} 15. Qe2 {[%clk 0:03:11.7]} 15...
b5 {[%clk 0:02:43.7]} 16. Bb3 {[%clk 0:03:12.4]} 16... Bb7 {[%clk 0:02:38.5]}
17. Rfd1 {[%clk 0:03:10.6]} 17... Qe7 {[%clk 0:02:38.8]} 18. f5 {[%clk
0:03:01.4]} 18... exf5 {[%clk 0:02:34]} 19. Nd5 {[%clk 0:02:59.4]} 19... Bc5+
{[%clk 0:02:25.2]} 20. Kh1 {[%clk 0:02:59.6]} 20... Qxe4 {[%clk 0:02:25]} 21.
Qf1 {[%clk 0:02:50.5]} 21... Kh8 {[%clk 0:02:21.8]} 22. Rac1 {[%clk 0:02:44.3]}
22... d6 {[%clk 0:02:15.1]} 23. Re1 {[%clk 0:02:37.9]} 23... Bxd5 {[%clk
0:02:14.7]} 24. Rxe4 {[%clk 0:02:38.1]} 24... Bxe4 {[%clk 0:02:16]} 25. Bc2
{[%clk 0:02:32.5]} 25... Ng5 {[%clk 0:02:06.8]} 26. Bf4 {[%clk 0:02:26.8]} 26...
Bxc2 {[%clk 0:02:04.9]} 27. Bxg5 {[%clk 0:02:24.2]} 27... Be4 {[%clk 0:02:03.5]}
28. Bf4 {[%clk 0:02:25.3]} 28... Rac8 {[%clk 0:02:01.5]} 29. a3 {[%clk
0:02:14.5]} 29... h6 {[%clk 0:02:01.6]} 30. b4 {[%clk 0:02:04.8]} 30... Bb6
{[%clk 0:02:00.1]} 31. Bxd6 {[%clk 0:02:03.9]} 31... Rxc1 {[%clk 0:01:55.1]} 32.
Qxc1 {[%clk 0:02:05]} 32... Rd8 {[%clk 0:01:56.6]} 33. Bc5 {[%clk 0:02:02.7]}
33... Bc7 {[%clk 0:01:52.8]} 34. Be3 {[%clk 0:01:56.3]} 34... Be5 {[%clk
0:01:47.3]} 35. Bd2 {[%clk 0:01:49.6]} 35... Kh7 {[%clk 0:01:46.9]} 36. h3
{[%clk 0:01:47.1]} 36... Rd4 {[%clk 0:01:46.8]} 37. Be3 {[%clk 0:01:44.3]} 37...
Rd3 {[%clk 0:01:46.1]} 38. Bf4 {[%clk 0:01:40.3]} 38... Rc3 {[%clk 0:01:45.7]}
39. Qd2 {[%clk 0:01:37.9]} 39... Rc2 {[%clk 0:01:44.6]} 40. Qe3 {[%clk
0:01:33.8]} 40... Rxg2 {[%clk 0:01:42.9]} 41. Bxe5 {[%clk 0:01:35.1]} 41... Re2+
{[%clk 0:01:41.7]} 0-1

[Event "*** Titled Tuesday Blitz"]
[Site "Chess.com"]
[Date "2019.01.01"]
[Round "1"]
[White "nOcHeaTiNgKiD"]
[Black "Matibar"]
[Result "0-1"]
[WhiteElo "2417"]
[BlackElo "2800"]
[TimeControl "180+2"]
[EndTime "13:05:45 PST"]
[Termination "Matibar won by resignation"]

1. d4 {[%clk 0:01:51.6]} 1... Nf6 {[%clk 0:03:00.3]} 2. Nf3 {[%clk 0:01:51.7]}
2... b6 {[%clk 0:03:01.4]} 3. Bf4 {[%clk 0:01:51.7]} 3... Bb7 {[%clk 0:03:02.7]}
4. e3 {[%clk 0:01:52.7]} 4... Nh5 {[%clk 0:03:03.9]} 5. Bg5 {[%clk 0:01:53.4]}
5... h6 {[%clk 0:03:04.7]} 6. Bh4 {[%clk 0:01:54.4]} 6... g5 {[%clk 0:03:05.9]}
7. Bg3 {[%clk 0:01:55]} 7... d6 {[%clk 0:03:07.2]} 8. Nc3 {[%clk 0:01:54.9]}
8... Nd7 {[%clk 0:03:07.2]} 9. Bd3 {[%clk 0:01:55.3]} 9... e6 {[%clk 0:03:06]}
10. Qe2 {[%clk 0:01:55.8]} 10... g4 {[%clk 0:02:59.3]} 11. Nh4 {[%clk
0:01:51.2]} 11... Rg8 {[%clk 0:03:00.4]} 12. h3 {[%clk 0:01:44.1]} 12... Nxg3
{[%clk 0:03:00.7]} 13. fxg3 {[%clk 0:01:44.8]} 13... h5 {[%clk 0:02:44.6]} 14.
O-O-O {[%clk 0:01:41.8]} 14... Qe7 {[%clk 0:02:45]} 15. e4 {[%clk 0:01:39.7]}
15... O-O-O {[%clk 0:02:45.6]} 16. Ba6 {[%clk 0:01:37.6]} 16... Bg7 {[%clk
0:02:38.8]} 17. Rhe1 {[%clk 0:01:24.2]} 17... Bf6 {[%clk 0:02:37.9]} 18. Qb5
{[%clk 0:01:15.5]} 18... gxh3 {[%clk 0:02:32.7]} 19. Bxb7+ {[%clk 0:01:02.1]}
19... Kxb7 {[%clk 0:02:32.9]} 20. d5 {[%clk 0:01:03]} 20... Nb8 {[%clk
0:02:28.8]} 21. Nf3 {[%clk 0:00:36.5]} 21... hxg2 {[%clk 0:02:17.6]} 22. Nd4
{[%clk 0:00:37.1]} 22... Bxd4 {[%clk 0:02:03.7]} 23. Rxd4 {[%clk 0:00:37.6]}
23... Rxg3 {[%clk 0:02:05.2]} 24. Rg1 {[%clk 0:00:34.5]} 24... Qg5+ {[%clk
0:02:03.9]} 25. Kb1 {[%clk 0:00:35.3]} 25... Qe3 {[%clk 0:02:05.8]} 26. Rdd1
{[%clk 0:00:35.3]} 26... h4 {[%clk 0:02:06.6]} 27. dxe6 {[%clk 0:00:34]} 27...
fxe6 {[%clk 0:02:07.3]} 28. Rde1 {[%clk 0:00:32.8]} 28... Qxe1+ {[%clk
0:02:06.4]} 0-1

[Event "*** Titled Tuesday Blitz"]
[Site "Chess.com"]
[Date "2019.01.01"]
[Round "1"]
[White "afgano29"]
[Black "MFBerna"]
[Result "1-0"]
[WhiteElo "2651"]
[BlackElo "2301"]
[TimeControl "180+2"]
[EndTime "13:05:46 PST"]
[Termination "afgano29 won by resignation"]

1. d4 {[%clk 0:03:00.5]} 1... Nf6 {[%clk 0:03:00]} 2. c4 {[%clk 0:03:01]} 2...
e6 {[%clk 0:03:01.2]} 3. Nf3 {[%clk 0:03:01.2]} 3... Bb4+ {[%clk 0:03:01.1]} 4.
Nbd2 {[%clk 0:03:02.5]} 4... O-O {[%clk 0:03:01.2]} 5. g3 {[%clk 0:03:03.5]}
5... d5 {[%clk 0:03:02.2]} 6. Bg2 {[%clk 0:03:01.1]} 6... dxc4 {[%clk
0:03:03.1]} 7. O-O {[%clk 0:03:01.4]} 7... c5 {[%clk 0:03:00.1]} 8. Nxc4 {[%clk
0:03:01.1]} 8... cxd4 {[%clk 0:02:59.8]} 9. Qxd4 {[%clk 0:03:00.2]} 9... Nc6
{[%clk 0:02:58.9]} 10. Qxd8 {[%clk 0:02:59]} 10... Rxd8 {[%clk 0:03:00.8]} 11.
Bg5 {[%clk 0:02:56.5]} 11... Be7 {[%clk 0:02:58.1]} 12. Rfd1 {[%clk 0:02:55.6]}
12... Bd7 {[%clk 0:02:58.3]} 13. Nfe5 {[%clk 0:02:54.2]} 13... Be8 {[%clk
0:02:40.9]} 14. Nxc6 {[%clk 0:02:54.2]} 14... bxc6 {[%clk 0:02:36.9]} 15. Rac1
{[%clk 0:02:48.5]} 15... h6 {[%clk 0:02:36.9]} 16. Be3 {[%clk 0:02:41.6]} 16...
Nd5 {[%clk 0:02:32.8]} 17. Bd4 {[%clk 0:02:37.4]} 17... Rab8 {[%clk 0:02:28]}
18. b3 {[%clk 0:02:11.2]} 18... a6 {[%clk 0:02:00.9]} 19. Na5 {[%clk 0:01:52.2]}
19... Rdc8 {[%clk 0:01:33.7]} 20. e4 {[%clk 0:01:37]} 20... Nf6 {[%clk
0:00:57.9]} 21. Bc5 {[%clk 0:01:34.3]} 21... Bd8 {[%clk 0:00:45.9]} 22. Nc4
{[%clk 0:01:33.8]} 22... a5 {[%clk 0:00:45.2]} 23. Nd6 {[%clk 0:01:31.3]} 23...
Rc7 {[%clk 0:00:42.8]} 24. e5 {[%clk 0:01:32.1]} 24... a4 {[%clk 0:00:33.3]} 25.
exf6 {[%clk 0:01:31.7]} 25... Bxf6 {[%clk 0:00:35.2]} 26. bxa4 {[%clk
0:01:31.8]} 1-0

[Event "*** Titled Tuesday Blitz"]
[Site "Chess.com"]
[Date "2019.01.01"]
[Round "1"]
[White "GMWSO"]
[Black "biostatistician"]
[Result "1-0"]
[WhiteElo "2984"]
[BlackElo "2464"]
[TimeControl "180+2"]
[EndTime "13:05:47 PST"]
[Termination "GMWSO won by resignation"]

1. Nf3 {[%clk 0:02:59.2]} 1... Nf6 {[%clk 0:03:01.4]} 2. c4 {[%clk 0:02:56.4]}
2... g6 {[%clk 0:03:02.7]} 3. Nc3 {[%clk 0:02:55.9]} 3... Bg7 {[%clk 0:03:04.6]}
4. e4 {[%clk 0:02:56.7]} 4... d6 {[%clk 0:03:05.3]} 5. d4 {[%clk 0:02:57]} 5...
O-O {[%clk 0:03:06.7]} 6. h3 {[%clk 0:02:55.8]} 6... e5 {[%clk 0:03:07.7]} 7. d5
{[%clk 0:02:54.2]} 7... Nh5 {[%clk 0:03:08.1]} 8. g3 {[%clk 0:02:52.3]} 8... f5
{[%clk 0:03:08.1]} 9. exf5 {[%clk 0:02:53.6]} 9... gxf5 {[%clk 0:03:08.8]} 10.
Nh4 {[%clk 0:02:54.8]} 10... Nf4 {[%clk 0:03:09.5]} 11. Rg1 {[%clk 0:02:42.8]}
11... Kh8 {[%clk 0:03:07.7]} 12. Be3 {[%clk 0:02:37.1]} 12... Na6 {[%clk
0:03:07.4]} 13. Qd2 {[%clk 0:02:35.7]} 13... Nc5 {[%clk 0:03:03.1]} 14. gxf4
{[%clk 0:02:25.6]} 14... Qxh4 {[%clk 0:03:02.1]} 15. Rxg7 {[%clk 0:02:26.6]}
15... Kxg7 {[%clk 0:03:00.4]} 16. fxe5 {[%clk 0:02:28.5]} 16... f4 {[%clk
0:01:36.4]} 17. Bd4 {[%clk 0:02:25.8]} 17... Bxh3 {[%clk 0:01:31.9]} 18. exd6+
{[%clk 0:02:17.5]} 18... Kh6 {[%clk 0:01:32.5]} 19. O-O-O {[%clk 0:02:06.4]}
19... Bxf1 {[%clk 0:01:09.5]} 20. Bxc5 {[%clk 0:02:04.3]} 20... Bg2 {[%clk
0:01:01.3]} 21. dxc7 {[%clk 0:02:00.2]} 21... Rfc8 {[%clk 0:00:48.9]} 22. Bd6
{[%clk 0:01:51.3]} 22... Kg6 {[%clk 0:00:22.2]} 23. Bxf4 {[%clk 0:01:49]} 23...
Kf7 {[%clk 0:00:21.9]} 24. d6 {[%clk 0:01:48.6]} 1-0

[Event "*** Titled Tuesday Blitz"]
[Site "Chess.com"]
[Date "2019.01.01"]
[Round "1"]
[White "AnonymousBread"]
[Black "nitpicker"]
[Result "1-0"]
[WhiteElo "2567"]
[BlackElo "2196"]
[TimeControl "180+2"]
[EndTime "13:05:54 PST"]
[Termination "AnonymousBread won on time"]

1. d4 {[%clk 0:03:01.9]} 1... Nf6 {[%clk 0:03:00]} 2. Nc3 {[%clk 0:03:02.6]}
2... c5 {[%clk 0:02:53.2]} 3. dxc5 {[%clk 0:02:56.4]} 3... Qa5 {[%clk
0:02:47.4]} 4. Nf3 {[%clk 0:02:50.7]} 4... Qxc5 {[%clk 0:02:40]} 5. Bf4 {[%clk
0:02:48.7]} 5... d6 {[%clk 0:02:35.8]} 6. e3 {[%clk 0:02:49.6]} 6... g6 {[%clk
0:02:34]} 7. Be2 {[%clk 0:02:44.2]} 7... Bg7 {[%clk 0:02:33.4]} 8. O-O {[%clk
0:02:41]} 8... O-O {[%clk 0:02:34.2]} 9. h3 {[%clk 0:02:36.5]} 9... a6 {[%clk
0:02:35.1]} 10. e4 {[%clk 0:02:35]} 10... b5 {[%clk 0:02:04.1]} 11. Be3 {[%clk
0:02:35.8]} 11... Qc7 {[%clk 0:01:56.4]} 12. Nd4 {[%clk 0:02:26.2]} 12... Bb7
{[%clk 0:01:54.9]} 13. Bf3 {[%clk 0:02:27.2]} 13... Nbd7 {[%clk 0:01:53.6]} 14.
Re1 {[%clk 0:02:22.4]} 14... Nc5 {[%clk 0:01:54.6]} 15. Bg5 {[%clk 0:02:15.2]}
15... h6 {[%clk 0:01:48.3]} 16. Bh4 {[%clk 0:02:16.2]} 16... Rfe8 {[%clk
0:01:23.2]} 17. Qd2 {[%clk 0:02:11.7]} 17... Kh7 {[%clk 0:01:21.6]} 18. Rad1
{[%clk 0:02:11.2]} 18... Rac8 {[%clk 0:01:21.3]} 19. Nd5 {[%clk 0:02:08.1]}
19... Nxd5 {[%clk 0:00:44.3]} 20. exd5 {[%clk 0:02:10]} 20... Na4 {[%clk
0:00:26.2]} 21. c3 {[%clk 0:02:08.6]} 21... Nb6 {[%clk 0:00:24.4]} 22. Qf4
{[%clk 0:01:59.6]} 22... e5 {[%clk 0:00:20.2]} 23. dxe6 {[%clk 0:01:58.3]} 23...
fxe6 {[%clk 0:00:08]} 24. Nxe6 {[%clk 0:01:58.1]} 1-0

[Event "*** Titled Tuesday Blitz"]
[Site "Chess.com"]
[Date "2019.01.01"]
[Round "1"]
[White "GMMelik"]
[Black "SimonKnightRivendell"]
[Result "1-0"]
[WhiteElo "2495"]
[BlackElo "1976"]
[TimeControl "180+2"]
[EndTime "13:06:01 PST"]
[Termination "GMMelik won by resignation"]

1. d4 {[%clk 0:03:00.2]} 1... d5 {[%clk 0:02:58.9]} 2. Bf4 {[%clk 0:03:00.8]}
2... Nf6 {[%clk 0:02:58.3]} 3. e3 {[%clk 0:03:01.7]} 3... c5 {[%clk 0:02:58.1]}
4. Nc3 {[%clk 0:03:01.4]} 4... g6 {[%clk 0:02:54.6]} 5. Nb5 {[%clk 0:02:57.6]}
5... Na6 {[%clk 0:02:54.2]} 6. c3 {[%clk 0:02:49.4]} 6... Bg7 {[%clk 0:02:54.1]}
7. a4 {[%clk 0:02:48.7]} 7... O-O {[%clk 0:02:54.1]} 8. Be2 {[%clk 0:02:34.6]}
8... Bf5 {[%clk 0:02:47.8]} 9. Nf3 {[%clk 0:02:33.5]} 9... Nh5 {[%clk
0:02:45.7]} 10. Be5 {[%clk 0:02:28.9]} 10... f6 {[%clk 0:02:44.9]} 11. Bg3
{[%clk 0:02:28.8]} 11... Nxg3 {[%clk 0:02:45.4]} 12. hxg3 {[%clk 0:02:29.8]}
12... Nc7 {[%clk 0:02:41.8]} 13. dxc5 {[%clk 0:02:18.3]} 13... Be4 {[%clk
0:02:28.7]} 14. Nd2 {[%clk 0:02:11.6]} 14... Bxg2 {[%clk 0:02:25]} 15. Rh2
{[%clk 0:02:10.9]} 15... Be4 {[%clk 0:02:25.1]} 16. Nxe4 {[%clk 0:02:11.6]}
16... dxe4 {[%clk 0:02:25.4]} 17. Qxd8 {[%clk 0:02:10.8]} 17... Rfxd8 {[%clk
0:02:19.3]} 18. Nxc7 {[%clk 0:02:11.8]} 18... Rac8 {[%clk 0:02:20]} 19. Bc4+
{[%clk 0:02:11.7]} 19... Kh8 {[%clk 0:02:13.7]} 20. Ne6 {[%clk 0:02:12.7]} 20...
Rd7 {[%clk 0:02:05]} 21. Ke2 {[%clk 0:02:03.6]} 21... h5 {[%clk 0:01:56.1]} 22.
b4 {[%clk 0:01:58.5]} 22... Bh6 {[%clk 0:01:50]} 23. g4 {[%clk 0:01:55.5]} 23...
Rc6 {[%clk 0:01:42.6]} 24. gxh5 {[%clk 0:01:41.8]} 24... g5 {[%clk 0:01:39.3]}
25. Nd4 {[%clk 0:01:41.8]} 25... Rcc7 {[%clk 0:01:32.7]} 26. Be6 {[%clk
0:01:34.7]} 26... Rd8 {[%clk 0:01:31.8]} 27. Nf5 {[%clk 0:01:33.7]} 27... Kh7
{[%clk 0:01:29.6]} 28. Bf7 {[%clk 0:01:29.6]} 28... Bf8 {[%clk 0:01:25.2]} 29.
Bg6+ {[%clk 0:01:30.2]} 29... Kh8 {[%clk 0:01:24.8]} 30. Rd1 {[%clk 0:01:29.6]}
30... Rxd1 {[%clk 0:01:23.9]} 31. Kxd1 {[%clk 0:01:31.5]} 31... e6 {[%clk
0:01:24.7]} 32. Nd4 {[%clk 0:01:32.3]} 32... Rd7 {[%clk 0:01:21.2]} 33. Kc2
{[%clk 0:01:31.8]} 33... e5 {[%clk 0:01:21.6]} 34. Ne6 {[%clk 0:01:30.3]} 34...
Be7 {[%clk 0:01:21.9]} 35. Bxe4 {[%clk 0:01:31]} 35... b6 {[%clk 0:01:21.9]} 36.
c6 {[%clk 0:01:31.1]} 36... Rd6 {[%clk 0:01:22.3]} 37. c7 {[%clk 0:01:32.2]}
37... Rxe6 {[%clk 0:01:21.8]} 38. c8=Q+ {[%clk 0:01:33.2]} 1-0

[Event "*** Titled Tuesday Blitz"]
[Site "Chess.com"]
[Date "2019.01.01"]
[Round "1"]
[White "matiss90"]
[Black "Indianlad"]
[Result "0-1"]
[WhiteElo "2431"]
[BlackElo "2828"]
[TimeControl "180+2"]
[EndTime "13:06:04 PST"]
[Termination "Indianlad won by resignation"]

1. e4 {[%clk 0:03:00.8]} 1... c5 {[%clk 0:03:00.7]} 2. Nf3 {[%clk 0:03:00.7]}
2... d6 {[%clk 0:03:02.2]} 3. d4 {[%clk 0:03:01.6]} 3... cxd4 {[%clk 0:03:04.1]}
4. Nxd4 {[%clk 0:03:03.3]} 4... Nf6 {[%clk 0:03:05.7]} 5. Nc3 {[%clk 0:03:04.8]}
5... a6 {[%clk 0:03:07.3]} 6. Bc4 {[%clk 0:03:05.9]} 6... e6 {[%clk 0:03:08.1]}
7. Bb3 {[%clk 0:03:07]} 7... Nbd7 {[%clk 0:03:09.6]} 8. Bg5 {[%clk 0:03:07.2]}
8... Nc5 {[%clk 0:03:10.3]} 9. f4 {[%clk 0:03:08.4]} 9... Be7 {[%clk 0:03:11.1]}
10. Qf3 {[%clk 0:03:09]} 10... h6 {[%clk 0:03:12.6]} 11. Bh4 {[%clk 0:03:10.1]}
11... Qc7 {[%clk 0:03:02.6]} 12. O-O-O {[%clk 0:03:08.5]} 12... b5 {[%clk
0:03:03.7]} 13. e5 {[%clk 0:02:53.9]} 13... Bb7 {[%clk 0:02:59.2]} 14. Qe2
{[%clk 0:02:54.6]} 14... dxe5 {[%clk 0:02:53.5]} 15. fxe5 {[%clk 0:02:55.3]}
15... Nfe4 {[%clk 0:02:54.7]} 16. Nxe4 {[%clk 0:02:47.8]} 16... Bxe4 {[%clk
0:02:52.9]} 17. Bxe7 {[%clk 0:01:44.4]} 17... Qxe7 {[%clk 0:02:54.8]} 18. h4
{[%clk 0:01:39]} 18... O-O {[%clk 0:02:49.3]} 19. g4 {[%clk 0:01:39.6]} 19...
Bxh1 {[%clk 0:02:48.1]} 20. Rxh1 {[%clk 0:01:40.5]} 20... Rfd8 {[%clk
0:02:42.7]} 21. c3 {[%clk 0:01:40]} 21... Rac8 {[%clk 0:02:39.4]} 22. Bc2 {[%clk
0:01:37.6]} 22... b4 {[%clk 0:02:18]} 23. g5 {[%clk 0:01:24]} 23... bxc3 {[%clk
0:02:18.9]} 24. bxc3 {[%clk 0:01:17.4]} 24... Na4 {[%clk 0:02:16.4]} 25. Bxa4
{[%clk 0:00:39.4]} 25... Qa3+ {[%clk 0:02:17.1]} 26. Kb1 {[%clk 0:00:38.9]}
26... Qxa4 {[%clk 0:02:07.4]} 27. gxh6 {[%clk 0:00:18.3]} 27... Rxd4 {[%clk
0:02:07.7]} 28. cxd4 {[%clk 0:00:19.2]} 28... Rb8+ {[%clk 0:02:06.3]} 29. Kc1
{[%clk 0:00:16.8]} 29... Qc6+ {[%clk 0:02:07.5]} 0-1

[Event "*** Titled Tuesday Blitz"]
[Site "Chess.com"]
[Date "2019.01.01"]
[Round "1"]
[White "SolidJ"]
[Black "olksuna"]
[Result "0-1"]
[WhiteElo "1665"]
[BlackElo "2473"]
[TimeControl "180+2"]
[EndTime "13:06:05 PST"]
[Termination "olksuna won by resignation"]

1. e4 {[%clk 0:03:01.9]} 1... c5 {[%clk 0:02:59.4]} 2. Nf3 {[%clk 0:03:02.9]}
2... Nc6 {[%clk 0:02:59.6]} 3. d4 {[%clk 0:03:04.3]} 3... cxd4 {[%clk
0:03:00.5]} 4. Nxd4 {[%clk 0:03:06.2]} 4... g6 {[%clk 0:03:00.5]} 5. Nc3 {[%clk
0:03:04.9]} 5... Bg7 {[%clk 0:03:01.3]} 6. Be3 {[%clk 0:03:06.4]} 6... Nf6
{[%clk 0:03:02.1]} 7. Bc4 {[%clk 0:03:06.9]} 7... O-O {[%clk 0:03:00.5]} 8. Bb3
{[%clk 0:03:05.8]} 8... Re8 {[%clk 0:02:55.8]} 9. O-O {[%clk 0:02:59.5]} 9... d6
{[%clk 0:02:54.9]} 10. f3 {[%clk 0:02:58.8]} 10... Bd7 {[%clk 0:02:41.4]} 11.
Qd2 {[%clk 0:02:58]} 11... Rc8 {[%clk 0:02:42.3]} 12. Rfd1 {[%clk 0:02:52.6]}
12... Na5 {[%clk 0:02:40.1]} 13. Kh1 {[%clk 0:02:33.7]} 13... a6 {[%clk
0:02:35]} 14. Bh6 {[%clk 0:02:31.6]} 14... Bh8 {[%clk 0:02:35.4]} 15. Rac1
{[%clk 0:02:05.4]} 15... Nc4 {[%clk 0:02:30.1]} 16. Bxc4 {[%clk 0:02:05.4]}
16... Rxc4 {[%clk 0:02:31.6]} 17. Nce2 {[%clk 0:01:52.6]} 17... b5 {[%clk
0:02:20.3]} 18. b3 {[%clk 0:01:43.5]} 18... Rc5 {[%clk 0:02:20.6]} 19. c4 {[%clk
0:01:43.4]} 19... bxc4 {[%clk 0:02:15.9]} 20. bxc4 {[%clk 0:01:35]} 20... Qc7
{[%clk 0:02:15.6]} 21. Qd3 {[%clk 0:01:26.4]} 21... Rc8 {[%clk 0:02:07.8]} 22.
Rc3 {[%clk 0:01:01.9]} 22... Rh5 {[%clk 0:01:49.9]} 23. Be3 {[%clk 0:00:48.6]}
23... d5 {[%clk 0:01:49.4]} 24. Bg1 {[%clk 0:00:46.2]} 24... dxe4 {[%clk
0:01:44.5]} 25. fxe4 {[%clk 0:00:40.2]} 25... Ng4 {[%clk 0:01:43.8]} 26. Qg3
{[%clk 0:00:26.9]} 26... Be5 {[%clk 0:01:31.5]} 0-1

[Event "*** Titled Tuesday Blitz"]
[Site "Chess.com"]
[Date "2019.01.01"]
[Round "1"]
[White "walkingcreep"]
[Black "P0ubelle"]
[Result "1-0"]
[WhiteElo "2582"]
[BlackElo "2222"]
[TimeControl "180+2"]
[EndTime "13:06:09 PST"]
[Termination "walkingcreep won by resignation"]

1. d4 {[%clk 0:03:01.9]} 1... Nf6 {[%clk 0:02:35.8]} 2. c4 {[%clk 0:03:02.3]}
2... g6 {[%clk 0:02:37]} 3. Nc3 {[%clk 0:03:03.5]} 3... Bg7 {[%clk 0:02:38.5]}
4. e4 {[%clk 0:03:02.8]} 4... d6 {[%clk 0:02:40.1]} 5. Nf3 {[%clk 0:03:02.2]}
5... O-O {[%clk 0:02:41]} 6. Be2 {[%clk 0:03:03.6]} 6... Nc6 {[%clk 0:02:42.3]}
7. O-O {[%clk 0:03:01.2]} 7... e5 {[%clk 0:02:43.7]} 8. d5 {[%clk 0:03:02.1]}
8... Ne7 {[%clk 0:02:44]} 9. Ne1 {[%clk 0:03:03.5]} 9... Ne8 {[%clk 0:02:42.8]}
10. Nd3 {[%clk 0:03:04.4]} 10... f5 {[%clk 0:02:44.5]} 11. f3 {[%clk 0:03:05.9]}
11... f4 {[%clk 0:02:45.3]} 12. Bd2 {[%clk 0:03:06.9]} 12... g5 {[%clk
0:02:46.7]} 13. Rc1 {[%clk 0:03:07.6]} 13... Rf7 {[%clk 0:02:46]} 14. c5 {[%clk
0:03:08]} 14... Ng6 {[%clk 0:02:46.8]} 15. Nb5 {[%clk 0:02:57.7]} 15... a6
{[%clk 0:02:44.4]} 16. Na3 {[%clk 0:02:57.8]} 16... h5 {[%clk 0:02:42.1]} 17.
Nc4 {[%clk 0:02:55.5]} 17... dxc5 {[%clk 0:02:34.6]} 18. Nxc5 {[%clk 0:02:55.2]}
18... Qe7 {[%clk 0:02:16.5]} 19. Bb4 {[%clk 0:02:47.6]} 19... Qf6 {[%clk
0:02:08.5]} 20. Ne6 {[%clk 0:02:25.7]} 20... Bxe6 {[%clk 0:01:51.5]} 21. dxe6
{[%clk 0:02:26.2]} 21... Qxe6 {[%clk 0:01:53.2]} 22. Na5 {[%clk 0:02:27.2]}
22... Qb6+ {[%clk 0:01:52]} 23. Bc5 {[%clk 0:02:21.8]} 23... Qxa5 {[%clk
0:01:53.1]} 24. b4 {[%clk 0:02:20.8]} 24... Qa3 {[%clk 0:01:49.4]} 25. Bc4
{[%clk 0:02:18.5]} 25... b6 {[%clk 0:01:44.5]} 26. Bxf7+ {[%clk 0:02:16.2]}
26... Kxf7 {[%clk 0:01:42.3]} 27. Qd5+ {[%clk 0:02:14.6]} 27... Kf6 {[%clk
0:01:40.8]} 28. Qxa8 {[%clk 0:02:11.4]} 28... bxc5 {[%clk 0:01:39.4]} 29. Qxe8
{[%clk 0:02:11.7]} 29... g4 {[%clk 0:01:39.8]} 30. Rxc5 {[%clk 0:02:06]} 30...
Bf8 {[%clk 0:01:23.3]} 31. Rxc7 {[%clk 0:01:56.4]} 31... g3 {[%clk 0:01:17.5]}
32. Rf7+ {[%clk 0:01:49.8]} 32... Kg5 {[%clk 0:01:17.4]} 33. Rf5+ {[%clk
0:01:45.6]} 33... Kh6 {[%clk 0:01:07.7]} 34. Rf6 {[%clk 0:01:43.7]} 34... gxh2+
{[%clk 0:01:02.7]} 35. Kxh2 {[%clk 0:01:42.7]} 1-0

[Event "*** Titled Tuesday Blitz"]
[Site "Chess.com"]
[Date "2019.01.01"]
[Round "1"]
[White "TheBigBadChessDad"]
[Black "GulamaliRises"]
[Result "0-1"]
[WhiteElo "2286"]
[BlackElo "2644"]
[TimeControl "180+2"]
[EndTime "13:06:13 PST"]
[Termination "GulamaliRises won by resignation"]

1. d4 {[%clk 0:03:01.6]} 1... Nf6 {[%clk 0:02:49.1]} 2. Nf3 {[%clk 0:03:01.9]}
2... e6 {[%clk 0:02:50.6]} 3. Bf4 {[%clk 0:03:02.7]} 3... c5 {[%clk 0:02:47.8]}
4. c3 {[%clk 0:03:03.3]} 4... d5 {[%clk 0:02:46.9]} 5. e3 {[%clk 0:03:02.4]}
5... Bd6 {[%clk 0:02:48.1]} 6. Bg3 {[%clk 0:03:02.6]} 6... Qc7 {[%clk
0:02:47.7]} 7. Nbd2 {[%clk 0:03:03]} 7... O-O {[%clk 0:02:48.7]} 8. Bd3 {[%clk
0:03:03.9]} 8... Nbd7 {[%clk 0:02:49.9]} 9. Qe2 {[%clk 0:02:51.8]} 9... e5
{[%clk 0:02:49.6]} 10. dxe5 {[%clk 0:02:52.9]} 10... Nxe5 {[%clk 0:02:51.5]} 11.
Nxe5 {[%clk 0:02:53.9]} 11... Bxe5 {[%clk 0:02:53.4]} 12. Bxe5 {[%clk
0:02:54.1]} 12... Qxe5 {[%clk 0:02:55.3]} 13. O-O {[%clk 0:02:51.6]} 13... Bg4
{[%clk 0:02:48.9]} 14. Nf3 {[%clk 0:02:49.2]} 14... Qc7 {[%clk 0:02:49.9]} 15.
h3 {[%clk 0:02:48.5]} 15... Bh5 {[%clk 0:02:51.1]} 16. Qd1 {[%clk 0:02:46.5]}
16... Rad8 {[%clk 0:02:48.9]} 17. Be2 {[%clk 0:02:47.1]} 17... Rd6 {[%clk
0:02:49.9]} 18. Qa4 {[%clk 0:02:43.9]} 18... a6 {[%clk 0:02:46.9]} 19. Rad1
{[%clk 0:02:43.4]} 19... Rfd8 {[%clk 0:02:47.1]} 20. Rfe1 {[%clk 0:02:44.4]}
20... Ne4 {[%clk 0:02:28.8]} 21. Nd2 {[%clk 0:02:38]} 21... Bg6 {[%clk
0:02:07.1]} 22. Bf3 {[%clk 0:02:29.4]} 22... b5 {[%clk 0:02:03.1]} 23. Qa3
{[%clk 0:02:24]} 23... Nf6 {[%clk 0:01:57]} 24. b4 {[%clk 0:02:20.7]} 24... c4
{[%clk 0:01:48.1]} 25. g3 {[%clk 0:02:11.2]} 25... Bd3 {[%clk 0:01:48.9]} 26.
Bg2 {[%clk 0:02:10.3]} 26... Ne4 {[%clk 0:01:48.9]} 27. Nf3 {[%clk 0:02:07.8]}
27... Rf6 {[%clk 0:01:44.2]} 28. g4 {[%clk 0:01:41.9]} 28... h6 {[%clk
0:01:39.3]} 29. Qc1 {[%clk 0:01:28.6]} 29... a5 {[%clk 0:01:35.8]} 30. a3 {[%clk
0:01:29.3]} 30... axb4 {[%clk 0:01:36.9]} 31. axb4 {[%clk 0:01:28.4]} 31... Ra8
{[%clk 0:01:38]} 32. Rf1 {[%clk 0:01:11]} 32... Ra2 {[%clk 0:01:32.6]} 33. Rxd3
{[%clk 0:01:05.3]} 33... cxd3 {[%clk 0:01:33.2]} 34. Qb1 {[%clk 0:01:06.7]}
34... Nxc3 {[%clk 0:01:30]} 35. Qxd3 {[%clk 0:01:06.7]} 35... Qc4 {[%clk
0:01:29.6]} 36. Qd4 {[%clk 0:00:55.5]} 36... Ne2+ {[%clk 0:01:29.8]} 0-1